bitfinex/quotes_BTCUSD_20230403
["timestamp","ask_amount","ask_price","bid_price","bid_amount"]
[1680534825274,21.8689621,27989.0,27988.0,40.81423917]
[1680534825489,22.5835421,27989.0,27988.0,40.81423917]
[1680534826179,22.6105421,27989.0,27988.0,40.81423917]
[1680534826415,20.23202038,27989.0,27988.0,40.81423917]
[1680534826626,20.16573707,27989.0,27988.0,40.81423917]
[1680534826894,20.13873707,27989.0,27988.0,40.79223911]
[1680534827111,20.16573707,27989.0,27988.0,40.79223911]
[1680534827330,20.13873707,27989.0,27988.0,40.79223911]
[1680534827562,20.16573707,27989.0,27988.0,40.78869911]
[1680534827784,20.13873707,27989.0,27988.0,40.73537911]
[1680534828011,20.13873707,27989.0,27988.0,40.71607997]
[1680534828239,20.13867707,27989.0,27988.0,40.71206997]
[1680534828472,17.55477043,27989.0,27988.0,40.71206997]
[1680534828696,17.32257753,27989.0,27988.0,40.71195938]
[1680534828925,17.34939753,27989.0,27988.0,40.71213938]
[1680534829150,17.32239753,27989.0,27988.0,40.71213938]
[1680534829423,17.45645805,27989.0,27988.0,40.71213938]
[1680534829643,17.73481981,27989.0,27988.0,40.71184879]
[1680534829859,18.06181831,27989.0,27988.0,40.71184879]
[1680534830077,17.47925292,27989.0,27988.0,40.71184879]
[1680534830314,17.47925292,27989.0,27988.0,40.77778827]
[1680534830315,14.76413797,27989.0,27988.0,40.77778827]
[1680534830541,14.04077748,27989.0,27988.0,40.77785768]
[1680534830806,13.84948091,27989.0,27988.0,40.77767768]
[1680534831040,13.68182473,27989.0,27988.0,40.7119182]
[1680534831262,15.61184467,27989.0,27988.0,40.7119182]
[1680534831697,15.55802467,27989.0,27988.0,40.71162761]
[1680534831923,16.68502467,27989.0,27988.0,40.77856709]
[1680534832155,16.95802467,27989.0,27988.0,40.14868642]
[1680534832371,16.98502467,27989.0,27988.0,40.14968642]
[1680534832593,17.66355699,27989.0,27988.0,40.2156259]
[1680534833504,15.94290463,27989.0,27988.0,40.2156259]
[1680534833717,15.24837231,27989.0,27988.0,39.76530526]
[1680534833942,17.17831504,27989.0,27988.0,39.76530526]
[1680534835124,17.17831504,27989.0,27988.0,39.69936578]
[1680534835338,17.17831504,27989.0,27988.0,39.76530526]
[1680534836236,16.69984574,27989.0,27988.0,39.76530526]
[1680534836458,17.47254574,27989.0,27988.0,39.76530526]
[1680534836675,16.69984574,27989.0,27988.0,39.76530526]
[1680534836890,17.09984574,27989.0,27988.0,39.76530526]
[1680534837345,17.47254574,27989.0,27988.0,39.76530526]
[1680534838711,17.47254574,27989.0,27988.0,39.69936578]
[1680534838933,17.47254574,27989.0,27988.0,39.76530526]
[1680534839609,17.65118574,27989.0,27988.0,39.69936578]
[1680534839864,17.44181816,27989.0,27988.0,39.69936578]
[1680534840530,17.04181816,27989.0,27988.0,39.69936578]
[1680534840759,17.44181816,27989.0,27988.0,39.69936578]
[1680534841963,18.26863875,27989.0,27988.0,39.69936578]
[1680534842192,18.8643744,27989.0,27988.0,39.69936578]
[1680534842414,18.8643744,27989.0,27988.0,39.69035308]
[1680534842415,19.11562094,27989.0,27988.0,39.69035308]
[1680534842642,19.10681472,27989.0,27988.0,39.69035308]
[1680534842872,19.17941853,27989.0,27988.0,39.69035308]
[1680534843100,18.03377362,27989.0,27988.0,39.69035308]
[1680534843331,18.01977387,27989.0,27988.0,39.68935308]
[1680534843568,17.7913333,27989.0,27988.0,39.68935308]
[1680534843799,17.7643333,27989.0,27988.0,39.68935308]
[1680534844026,17.7913333,27989.0,27988.0,39.68935308]
[1680534844899,17.7643333,27989.0,27988.0,39.68935308]
[1680534845169,17.7913333,27989.0,27988.0,39.68935308]
[1680534845404,17.7913333,27989.0,27988.0,39.67859308]
[1680534846288,17.7643333,27989.0,27988.0,39.67859308]
[1680534846407,17.7913333,27989.0,27988.0,39.67859308]
[1680534846845,18.65502458,27989.0,27988.0,39.56060175]
[1680534847083,20.88003415,27989.0,27988.0,38.85972404]
[1680534847756,20.85303415,27989.0,27988.0,38.85972404]
[1680534847983,20.88003415,27989.0,27988.0,38.85972404]
[1680534848433,20.87997415,27989.0,27988.0,38.85972404]
[1680534848961,20.85297415,27989.0,27988.0,38.85972404]
[1680534849211,20.87997415,27989.0,27988.0,38.85972404]
[1680534849426,20.85297415,27989.0,27988.0,38.85972404]
[1680534849649,20.98590343,27989.0,27988.0,38.85972404]
[1680534850129,20.95890343,27989.0,27988.0,38.85972404]
[1680534850360,20.98590343,27989.0,27988.0,38.85972404]
[1680534850531,20.94102067,27989.0,27988.0,38.85972404]
[1680534850762,20.98590343,27989.0,27988.0,38.85961345]
[1680534851103,20.95890343,27989.0,27988.0,38.85961345]
[1680534851645,20.95890343,27989.0,27988.0,38.85950286]
[1680534851854,20.40908891,27989.0,27988.0,38.85962286]
[1680534852056,20.40908891,27989.0,27988.0,38.29655679]
[1680534852057,17.73206964,27989.0,27988.0,38.29655679]
[1680534852421,17.73206964,27989.0,27988.0,38.29673679]
[1680534852422,16.26217313,27989.0,27988.0,38.29673679]
[1680534852626,15.12987413,27989.0,27988.0,38.2966262]
[1680534852885,15.0315564,27989.0,27988.0,38.2966262]
[1680534853063,15.31019134,27989.0,27988.0,38.2976262]
[1680534853278,15.11165134,27989.0,27988.0,38.4966262]
[1680534853486,12.95707367,27989.0,27988.0,38.4976262]
[1680534853679,12.95707367,27989.0,27988.0,38.63301561]
[1680534853680,13.16700141,27989.0,27988.0,38.63301561]
[1680534853876,8.41885364,27989.0,27988.0,38.63301561]
[1680534854088,8.75144341,27989.0,27988.0,38.56345509]
[1680534854311,8.7551224,27989.0,27988.0,38.56345509]
[1680534854455,8.7551224,27989.0,27988.0,38.29734502]
[1680534854456,8.79390739,27989.0,27988.0,38.29734502]
[1680534854654,9.89402739,27989.0,27988.0,38.3631645]
[1680534855308,9.87552739,27989.0,27988.0,38.3621645]
[1680534855506,8.80252739,27989.0,27988.0,38.3631645]
[1680534855709,8.80252739,27989.0,27988.0,38.5631645]
[1680534855710,8.99481499,27989.0,27988.0,38.5631645]
[1680534855879,8.32086704,27989.0,27988.0,38.5631645]
[1680534856099,8.29386704,27989.0,27988.0,38.5621645]
[1680534856364,8.32086704,27989.0,27988.0,38.5631645]
[1680534856626,8.32086704,27989.0,27988.0,38.5621645]
[1680534856627,8.37776606,27989.0,27988.0,38.5621645]
[1680534856825,8.40476606,27989.0,27988.0,38.5631645]
[1680534856963,8.70458606,27989.0,27988.0,38.5623445]
[1680534857168,8.55172892,27989.0,27988.0,38.5623445]
[1680534857436,8.57872892,27989.0,27988.0,38.5633445]
[1680534858277,8.55172892,27989.0,27988.0,38.5623445]
[1680534858492,8.57872892,27989.0,27988.0,38.5633445]
[1680534858955,8.4678299,27989.0,27988.0,38.6986445]
[1680534859206,8.4538209,27989.0,27988.0,38.4986445]
[1680534859489,8.4874279,27989.0,27988.0,38.6986445]
[1680534859757,8.4936079,27989.0,27988.0,38.69835391]
[1680534860021,8.4876079,27989.0,27988.0,38.69935391]
[1680534860326,8.4706079,27989.0,27988.0,38.69835391]
[1680534860553,8.4706079,27989.0,27988.0,38.69824332]
[1680534860828,8.4370009,27989.0,27988.0,38.69824332]
[1680534861070,7.15032888,27989.0,27988.0,38.69824332]
[1680534861316,7.17314888,27989.0,27988.0,38.69942332]
[1680534861622,7.15026888,27989.0,27988.0,38.69819273]
[1680534861836,7.15032888,27989.0,27988.0,38.69813273]
[1680534862078,7.16732888,27989.0,27988.0,38.69913273]
[1680534862322,7.15032888,27989.0,27988.0,38.69813273]
[1680534862568,7.20606088,27989.0,27988.0,38.69913273]
[1680534862811,7.18306088,27989.0,27988.0,38.69813273]
[1680534863067,7.20006088,27989.0,27988.0,38.69913273]
[1680534864067,7.18306088,27989.0,27988.0,38.69813273]
[1680534864314,7.20606088,27989.0,27988.0,38.69913273]
[1680534864582,7.18306088,27989.0,27988.0,38.69813273]
[1680534864833,7.20606088,27989.0,27988.0,38.69913273]
[1680534865086,7.18306088,27989.0,27988.0,38.69813273]
[1680534865394,7.20606088,27989.0,27988.0,38.69913273]
[1680534865601,9.59781678,27989.0,27988.0,38.36283273]
[1680534865882,9.76935678,27989.0,27988.0,38.36283273]
[1680534866139,9.74629678,27989.0,27988.0,38.36183273]
[1680534866997,9.76929678,27989.0,27988.0,38.36283273]
[1680534867215,9.74629678,27989.0,27988.0,38.36183273]
[1680534867434,9.77329678,27989.0,27988.0,38.36283273]
[1680534870520,9.77335678,27989.0,27988.0,38.36283273]
[1680534871195,8.67335678,27989.0,27988.0,38.36283273]
[1680534871451,9.77335678,27989.0,27988.0,38.36283273]
[1680534871861,9.8571958,27989.0,27988.0,38.36283273]
[1680534872586,9.8572558,27989.0,27988.0,38.36283273]
[1680534872787,9.8571958,27989.0,27988.0,38.36283273]
[1680534874758,9.8572558,27989.0,27988.0,38.36283273]
[1680534874993,9.90771392,27989.0,27988.0,37.9125512]
[1680534875235,10.37185625,27989.0,27988.0,37.9125512]
[1680534876148,10.34485625,27989.0,27988.0,37.9115512]
[1680534876334,10.37185625,27989.0,27988.0,37.9125512]
[1680534876583,10.98371625,27989.0,27988.0,37.77661043]
[1680534876835,13.82692772,27989.0,27988.0,37.0869466]
[1680534877073,14.58479851,27989.0,27988.0,36.28153243]
[1680534877304,14.78382449,27989.0,27988.0,36.28053243]
[1680534877530,14.81082449,27989.0,27988.0,36.28053243]
[1680534878002,14.81082449,27989.0,27988.0,36.25064243]
[1680534878003,17.40374919,27989.0,27988.0,36.25064243]
[1680534878232,17.44101086,27989.0,27988.0,35.46239509]
[1680534878923,17.91401086,27989.0,27988.0,35.46239509]
[1680534879161,17.94101086,27989.0,27988.0,35.46239509]
[1680534879423,17.94101086,27989.0,27988.0,35.45192509]
[1680534879882,17.9231281,27989.0,27988.0,35.45192509]
[1680534880107,21.0303281,27989.0,27988.0,35.45192509]
[1680534881030,21.0303281,27989.0,27988.0,35.44233669]
[1680534881253,21.0303281,27989.0,27988.0,35.43148009]
[1680534881480,20.80430212,27989.0,27988.0,35.43148009]
[1680534881711,20.68120261,27989.0,27988.0,35.35708128]
[1680534882178,20.90619259,27989.0,27988.0,35.35708128]
[1680534882377,20.87919259,27989.0,27988.0,35.35708128]
[1680534882590,20.40619259,27989.0,27988.0,35.34816728]
[1680534882813,21.57919259,27989.0,27988.0,35.17082252]
[1680534883034,21.60619259,27989.0,27988.0,35.17082252]
[1680534883554,21.83221857,27989.0,27988.0,35.17082252]
[1680534884027,21.83221857,27989.0,27988.0,35.15202252]
[1680534884474,21.92551279,27989.0,27988.0,35.12231252]
[1680534884902,21.39851279,27989.0,27988.0,35.12231252]
[1680534885130,21.70770371,27989.0,27988.0,35.12231252]
[1680534885359,18.50532355,27989.0,27988.0,35.12231252]
[1680534885591,18.50532355,27989.0,27988.0,35.12249252]
[1680534885592,17.23559789,27989.0,27988.0,35.12249252]
[1680534885839,12.99025838,27989.0,27988.0,35.12249252]
[1680534886057,12.73934636,27989.0,27988.0,35.12249252]
[1680534886293,12.96325838,27989.0,27988.0,35.12249252]
[1680534886520,12.32938469,27989.0,27988.0,35.12249252]
[1680534886736,12.23609047,27989.0,27988.0,35.12249252]
[1680534886976,12.60879047,27989.0,27988.0,35.12249252]
[1680534887741,12.76043047,27989.0,27988.0,35.12249252]
[1680534887972,13.08743047,27989.0,27988.0,35.12249252]
[1680534888199,13.06043047,27989.0,27988.0,35.12249252]
[1680534888437,13.06043047,27989.0,27988.0,35.11231252]
[1680534888438,13.08761047,27989.0,27988.0,35.11231252]
[1680534888899,13.06061047,27989.0,27988.0,35.10715253]
[1680534889130,13.08761047,27989.0,27988.0,35.10715253]
[1680534889353,13.32002249,27989.0,27988.0,35.10715253]
[1680534889574,13.34702249,27989.0,27988.0,35.10715253]
[1680534890482,13.49781734,27989.0,27988.0,34.43156442]
[1680534890705,14.26462658,27989.0,27988.0,34.43156442]
[1680534890944,14.40009113,27989.0,27988.0,34.42946442]
[1680534891182,14.63009416,27989.0,27988.0,34.42946442]
[1680534891653,14.60303416,27989.0,27988.0,34.42946442]
[1680534891890,14.63009416,27989.0,27988.0,34.42946442]
[1680534892355,14.63003416,27989.0,27988.0,34.42946442]
[1680534894077,17.2039676,27989.0,27988.0,34.42946442]
[1680534894501,17.48621852,27989.0,27988.0,34.42946442]
[1680534894625,17.2039676,27989.0,27988.0,34.42946442]
[1680534895372,17.2039676,27989.0,27988.0,34.42286442]
[1680534895590,17.3038676,27989.0,27988.0,34.42286442]
[1680534895846,17.35611549,27989.0,27988.0,33.99844837]
[1680534896079,17.35604569,27989.0,27988.0,33.1238332]
[1680534896527,17.35604569,27989.0,27988.0,32.9330932]
[1680534896528,17.57386457,27989.0,27988.0,32.9330932]
[1680534896748,18.0038676,27989.0,27988.0,32.3700109]
[1680534896971,17.9768676,27989.0,27988.0,32.3700109]
[1680534897163,18.28602967,27989.0,27988.0,32.3700109]
[1680534897614,18.25902967,27989.0,27988.0,32.3700109]
[1680534897817,18.28602967,27989.0,27988.0,32.3700109]
[1680534898032,18.28584967,27989.0,27988.0,32.35854282]
[1680534898254,18.35232334,27989.0,27988.0,32.35842282]
[1680534898471,17.97093097,27989.0,27988.0,32.35860282]
[1680534898939,17.79313612,27989.0,27988.0,32.35860282]
[1680534899411,17.12013612,27989.0,27988.0,32.35860282]
[1680534899651,16.89218642,27989.0,27988.0,32.35860282]
[1680534899864,16.91918642,27989.0,27988.0,32.35860282]
[1680534900086,17.19218642,27989.0,27988.0,32.35860282]
[1680534900308,17.21918642,27989.0,27988.0,32.35860282]
[1680534900553,16.96218339,27989.0,27988.0,32.35860282]
[1680534900780,16.98936339,27989.0,27988.0,31.6827777]
[1680534901248,16.88517585,27989.0,27988.0,31.6827777]
[1680534901461,17.55135148,27989.0,27988.0,31.6827777]
[1680534901668,17.32134845,27989.0,27988.0,31.6827777]
[1680534902316,17.07649527,27989.0,27988.0,31.6827777]
[1680534902807,16.94243475,27989.0,27988.0,31.6827777]
[1680534903022,15.8414672,27989.0,27988.0,31.6829577]
[1680534903238,16.0201072,27989.0,27988.0,31.6829577]
[1680534904909,15.9931072,27989.0,27988.0,31.6829577]
[1680534905365,16.0201072,27989.0,27988.0,31.6829577]
[1680534905945,16.27085475,27989.0,27988.0,31.6829577]
[1680534906151,16.0201072,27989.0,27988.0,31.6829577]
[1680534907055,16.0202872,27989.0,27988.0,31.6615677]
[1680534907275,16.0202872,27989.0,27988.0,31.6000277]
[1680534907276,16.50384231,27989.0,27988.0,31.6000277]
[1680534907496,17.00224231,27989.0,27988.0,31.6000277]
[1680534907948,16.90364023,27989.0,27988.0,31.6000277]
[1680534908171,17.15993426,27989.0,27988.0,31.6000277]
[1680534908414,16.90910175,27989.0,27988.0,31.6000277]
[1680534908855,17.19126382,27989.0,27988.0,31.5909477]
[1680534910733,17.19126382,27989.0,27988.0,30.91529676]
[1680534911301,17.19126382,27989.0,27988.0,30.89575676]
[1680534911627,17.19126382,27989.0,27988.0,30.09876426]
[1680534911628,17.1867966,27989.0,27988.0,30.09876426]
[1680534911927,17.28008761,27989.0,27988.0,30.09876426]
[1680534912603,17.48191306,27989.0,27988.0,30.09876426]
[1680534912831,17.50891306,27989.0,27988.0,30.09876426]
[1680534913060,18.20891306,27989.0,27988.0,30.09876426]
[1680534913728,18.18191306,27989.0,27988.0,30.09876426]
[1680534914004,18.20891306,27989.0,27988.0,30.09876426]
[1680534914247,18.18191306,27989.0,27988.0,30.09876426]
[1680534914481,18.20891306,27989.0,27988.0,30.09876426]
[1680534914700,18.17219117,27989.0,27988.0,30.09876426]
[1680534914921,18.19919117,27989.0,27988.0,30.09876426]
[1680534915153,18.19919117,27989.0,27988.0,30.08822318]
[1680534915377,18.01148117,27989.0,27988.0,30.08822318]
[1680534915602,18.03298117,27989.0,27988.0,30.08822318]
[1680534915791,18.03267555,27989.0,27988.0,30.08840318]
[1680534915997,18.49837266,27989.0,27988.0,30.08840318]
[1680534916214,18.49855266,27989.0,27988.0,29.97279318]
[1680534916445,18.49855266,27989.0,27988.0,29.94387454]
[1680534916669,18.47155266,27989.0,27988.0,29.93483754]
[1680534916890,18.49855266,27989.0,27988.0,29.37171707]
[1680534917111,18.52555266,27989.0,27988.0,29.37171707]
[1680534917580,21.00217847,27989.0,27988.0,27.53139873]
[1680534917824,22.8785128,27989.0,27988.0,23.75867982]
[1680534918054,23.02626084,27989.0,27988.0,22.7583546]
[1680534918300,22.28377484,27989.0,27988.0,22.1308126]
[1680534918530,22.28377484,27989.0,27988.0,21.3407936]
[1680534918531,22.2167918,27989.0,27988.0,21.3407936]
[1680534918756,22.2167918,27989.0,27988.0,19.32310391]
[1680534918981,22.2167918,27989.0,27988.0,17.12141991]
[1680534919232,22.2167918,27989.0,27988.0,14.57441991]
[1680534919233,21.86082358,27989.0,27988.0,14.57441991]
[1680534919462,21.18224569,27989.0,27988.0,13.47406858]
[1680534919691,20.39722096,27989.0,27988.0,13.47386915]
[1680534919914,20.39722096,27989.0,27988.0,13.47404915]
[1680534919915,20.55810148,27989.0,27988.0,13.47404915]
[1680534920155,20.58510148,27989.0,27988.0,13.47404915]
[1680534920396,19.90832348,27989.0,27988.0,13.47404915]
[1680534920611,19.85432348,27989.0,27988.0,13.47404915]
[1680534920860,20.29375594,27989.0,27988.0,13.47404915]
[1680534921081,20.35236719,27989.0,27988.0,12.79816551]
[1680534921304,20.80029965,27989.0,27988.0,12.79816551]
[1680534921525,20.25380667,27989.0,27988.0,12.79816551]
[1680534921781,20.57294812,27989.0,27988.0,12.79816551]
[1680534922696,19.11458566,27989.0,27988.0,12.79796608]
[1680534922929,16.24090067,27989.0,27988.0,12.79796608]
[1680534923161,16.26790067,27989.0,27988.0,12.79896608]
[1680534923626,16.24090067,27989.0,27988.0,12.79776665]
[1680534924079,16.26790067,27989.0,27988.0,12.79876665]
[1680534924322,16.24940067,27989.0,27988.0,12.79776665]
[1680534924567,16.24940067,27989.0,27988.0,12.79794665]
[1680534924568,13.46846565,27989.0,27988.0,12.79794665]
[1680534924793,11.06077421,27989.0,27988.0,12.99774722]
[1680534925026,10.57164499,27989.0,27988.0,12.99774722]
[1680534925259,8.23990134,27989.0,27988.0,13.16854722]
[1680534925487,5.94873946,27989.0,27988.0,14.03993943]
[1680534925729,3.66650365,27989.0,27988.0,13.66854722]
[1680534925973,0.77766694,27992.0,27988.0,13.66854722]
[1680534925974,0.08385321,27991.0,27990.0,0.06593948]
[1680534926212,0.06852997,27993.0,27992.0,0.7]
[1680534926449,0.12579058,27995.0,27992.0,0.7]
[1680534926450,0.08386798,27995.0,27994.0,0.06593948]
[1680534926681,0.16791216,27997.0,27995.0,0.7]
[1680534926682,0.00012,27997.0,27995.0,0.7]
[1680534926942,0.16774796,27998.0,27997.0,0.06593948]
[1680534927174,0.16774796,27998.0,27997.0,0.23613948]
[1680534927400,0.18474796,27999.0,27998.0,0.7]
[1680534927636,0.18474796,27999.0,27998.0,0.87078]
[1680534927869,0.017,27999.0,27998.0,0.87078]
[1680534928101,0.18474796,27999.0,27998.0,0.87078]
[1680534928322,0.017,27999.0,27998.0,0.87078]
[1680534928566,0.017,27999.0,27998.0,0.8706]
[1680534929699,0.017,27999.0,27998.0,0.0845]
[1680534930149,0.017,27999.0,27998.0,0.169]
[1680534931081,0.017,27999.0,27998.0,0.0855]
[1680534931309,0.017,27999.0,27998.0,0.1708]
[1680534931760,0.017,27999.0,27998.0,0.17060057]
[1680534932048,0.049309,27999.0,27998.0,0.0863]
[1680534932287,0.049,27999.0,27998.0,0.0863]
[1680534932508,0.017,27999.0,27998.0,0.0863]
[1680534932730,0.017,27999.0,27998.0,0.08610057]
[1680534933402,0.049893,27999.0,27998.0,0.08610057]
[1680534933660,0.06700636,27999.0,27998.0,0.0809005]
[1680534933857,0.06700636,27999.0,27998.0,0.0863]
[1680534934338,0.64110517,27999.0,27998.0,0.001]
[1680534934571,0.97068836,27999.0,27998.0,0.001]
[1680534934797,0.97068836,27999.0,27996.0,0.0851]
[1680534935023,0.331518,27998.0,27996.0,0.0851]
[1680534935258,0.032274,27997.0,27996.0,0.0851]
[1680534935487,0.432274,27997.0,27996.0,0.0851]
[1680534935709,0.7819903,27997.0,27996.0,0.07992894]
[1680534936843,0.7497163,27997.0,27996.0,0.07679228]
[1680534937108,0.7836193,27997.0,27996.0,0.07479228]
[1680534937340,0.7497163,27997.0,27996.0,0.16189228]
[1680534937569,0.7497163,27997.0,27996.0,0.15478251]
[1680534937794,0.3497163,27997.0,27996.0,0.1722]
[1680534938031,0.0497163,27997.0,27996.0,0.1722]
[1680534938265,0.0497163,27997.0,27996.0,0.190059]
[1680534938532,0.0497163,27997.0,27996.0,0.215313]
[1680534938782,0.0497163,27997.0,27996.0,0.188059]
[1680534939022,0.0497163,27997.0,27996.0,0.1702]
[1680534939501,0.017,27999.0,27996.0,0.2068829]
[1680534939738,0.017,27999.0,27998.0,0.0851]
[1680534939977,0.317,27999.0,27998.0,0.0851]
[1680534940205,0.317,27999.0,27998.0,0.187458]
[1680534940639,0.36609541,27999.0,27998.0,0.18256646]
[1680534941164,0.06591541,27999.0,27998.0,0.53572946]
[1680534941407,0.06591541,27999.0,27998.0,0.53272946]
[1680534941646,0.06591541,27999.0,27998.0,0.53590946]
[1680534942116,0.06591541,27999.0,27998.0,0.217201]
[1680534943020,0.06591541,27999.0,27998.0,0.214001]
[1680534943250,0.06591541,27999.0,27998.0,0.196143]
[1680534943483,0.06591541,27999.0,27998.0,0.18568]
[1680534943937,0.46591541,27999.0,27998.0,0.18568]
[1680534944166,0.76591541,27999.0,27998.0,0.18568]
[1680534944386,0.79805441,27999.0,27998.0,0.16968]
[1680534944608,0.76591541,27999.0,27998.0,0.17268]
[1680534944868,0.79795841,27999.0,27998.0,0.16501833]
[1680534945321,0.76609541,27999.0,27998.0,0.16501833]
[1680534945581,0.78397817,27999.0,27998.0,0.16501833]
[1680534945806,0.81697817,27999.0,27998.0,0.0851]
[1680534946007,0.81679817,27999.0,27998.0,0.0861]
[1680534946770,0.81679817,27999.0,27998.0,0.08148541]
[1680534946991,0.81858317,27999.0,27998.0,0.08148541]
[1680534947212,0.81876317,27999.0,27998.0,0.08148541]
[1680534947667,0.81858317,27999.0,27998.0,0.0768918]
[1680534947891,0.81679817,27999.0,27998.0,0.0758918]
[1680534948583,0.81679817,27999.0,27995.0,0.00018]
[1680534948584,0.99000317,27999.0,27995.0,0.00018]
[1680534948819,0.99000317,27999.0,27992.0,0.0857]
[1680534948820,0.831256,27998.0,27992.0,0.0857]
[1680534949033,0.17222081,27997.0,27992.0,0.0857]
[1680534949257,0.031499,27996.0,27992.0,0.0857]
[1680534949481,0.17339581,27996.0,27992.0,0.0857]
[1680534949705,0.031008,27995.0,27992.0,0.0857]
[1680534949936,0.04889076,27995.0,27992.0,0.0857]
[1680534950175,0.05004576,27994.0,27992.0,0.0857]
[1680534950401,0.01788276,27994.0,27992.0,0.0857]
[1680534950861,0.01788276,27993.0,27992.0,0.103562]
[1680534951114,0.3,27995.0,27992.0,0.188842]
[1680534951341,0.3,27995.0,27992.0,0.103142]
[1680534951569,0.3,27995.0,27994.0,0.0849]
[1680534951803,0.3,27995.0,27994.0,0.10276]
[1680534952032,0.3,27995.0,27994.0,0.10314]
[1680534952261,0.00018,27997.0,27994.0,0.3041252]
[1680534952505,0.017,27999.0,27996.0,0.0851]
[1680534952743,0.017,27999.0,27997.0,0.165164]
[1680534952972,0.017,27999.0,27998.0,0.025705]
[1680534953203,0.017,27999.0,27998.0,0.043563]
[1680534953709,0.09225778,27999.0,27998.0,0.043563]
[1680534954636,0.09225778,27999.0,27998.0,0.022858]
[1680534954876,0.09225778,27999.0,27998.0,0.017858]
[1680534955110,0.09225778,27999.0,27998.0,0.022858]
[1680534955364,0.09225778,27999.0,27998.0,0.017858]
[1680534955618,0.09225778,27999.0,27998.0,0.022858]
[1680534955847,0.09225778,27999.0,27998.0,0.005]
[1680534956076,0.09225778,27999.0,27998.0,0.022858]
[1680534956762,0.09225778,27999.0,27998.0,0.01529583]
[1680534956991,0.09225778,27999.0,27998.0,0.005]
[1680534957731,0.09225778,27999.0,27997.0,0.102959]
[1680534957969,0.09225778,27999.0,27997.0,0.0851]
[1680534958405,0.11014054,27999.0,27995.0,0.58528]
[1680534958634,0.11014054,27999.0,27996.0,0.017859]
[1680534958635,0.06753562,27998.0,27996.0,0.017859]
[1680534958856,0.06753562,27998.0,27996.0,0.053578]
[1680534959068,0.06753562,27998.0,27997.0,0.027321]
[1680534959281,0.06753562,27998.0,27997.0,0.017859]
[1680534959711,0.06753562,27998.0,27997.0,0.028859]
[1680534959956,0.06753562,27998.0,27997.0,0.017859]
[1680534960180,0.06753562,27998.0,27997.0,0.0428888]
[1680534960414,0.06753562,27998.0,27997.0,0.0653928]
[1680534960643,0.06753562,27998.0,27997.0,0.0695668]
[1680534960882,0.06753562,27998.0,27997.0,0.048537]
[1680534961116,0.06753562,27998.0,27997.0,0.021859]
[1680534961358,0.06753562,27998.0,27997.0,0.045282]
[1680534961794,0.06753562,27998.0,27997.0,0.102859]
[1680534962015,0.06753562,27998.0,27997.0,0.130229]
[1680534962479,0.06753562,27998.0,27997.0,0.1579858]
[1680534962681,0.06753562,27998.0,27997.0,0.130229]
[1680534962903,0.06753562,27998.0,27997.0,0.134229]
[1680534963626,0.06753562,27998.0,27997.0,0.130229]
[1680534963904,0.06753562,27998.0,27997.0,0.130409]
[1680534964345,0.06753562,27998.0,27997.0,0.134409]
[1680534966401,0.06506447,27998.0,27997.0,0.1668758]
[1680534966625,0.06506447,27998.0,27997.0,0.1668158]
[1680534967781,0.06506447,27998.0,27997.0,0.1669958]
[1680534969168,0.06506447,27998.0,27997.0,0.1653158]
[1680534971859,0.06506447,27998.0,27997.0,0.2500158]
[1680534973270,0.06506447,27998.0,27997.0,0.217429]
[1680534974146,0.06506447,27998.0,27997.0,0.396019]
[1680534974369,0.02439917,27998.0,27997.0,0.768719]
[1680534974623,0.07531724,27998.0,27997.0,0.768719]
[1680534974827,0.07531724,27998.0,27997.0,0.396019]
[1680534975291,0.07531724,27998.0,27997.0,0.4463548]
[1680534975505,0.07531724,27998.0,27997.0,0.392019]
[1680534975760,0.07731724,27998.0,27997.0,0.410019]
[1680534976038,0.02174547,27998.0,27997.0,0.76472956]
[1680534976281,0.02174547,27998.0,27997.0,1.24060956]
[1680534976529,0.017,27999.0,27998.0,0.5]
[1680534976530,0.000125,27999.0,27998.0,0.5]
[1680534976774,0.000125,27999.0,27998.0,1.47431956]
[1680534977417,0.000125,27999.0,27998.0,1.55959956]
[1680534979479,0.000125,27999.0,27998.0,1.73816956]
[1680534979964,0.000125,27999.0,27998.0,1.196389]
[1680534980195,0.000125,27999.0,27998.0,1.51720943]
[1680534980855,0.000125,27999.0,27998.0,1.48920943]
[1680534981085,0.000125,27999.0,27998.0,1.85241999]
[1680534981561,0.000125,27999.0,27998.0,1.87719999]
[1680534982495,0.000125,27999.0,27998.0,1.90519999]
[1680534982725,0.07870644,27999.0,27998.0,1.90519999]
[1680534983573,0.01967661,27999.0,27998.0,1.90501999]
[1680534983742,6.0,28002.0,28000.0,0.3727]
[1680534983743,6.00018,28002.0,28000.0,0.3727]
[1680534983990,4.78,28002.0,28001.0,2.07170556]
[1680534984131,4.78,28002.0,28001.0,2.57188556]
[1680534984346,4.78,28002.0,28001.0,2.92641377]
[1680534984568,4.88860425,28002.0,28001.0,2.92641377]
[1680534986613,4.88860425,28002.0,28001.0,2.95441377]
[1680534986841,4.88860425,28002.0,28001.0,2.92641377]
[1680534987054,4.88860425,28002.0,28001.0,2.95441377]
[1680534987700,4.88860425,28002.0,28001.0,2.92641377]
[1680534987911,4.88860425,28002.0,28001.0,3.65441377]
[1680534988553,4.88860425,28002.0,28001.0,3.67919377]
[1680534989851,4.66749044,28002.0,28001.0,3.71460377]
[1680534990068,4.63348048,28002.0,28001.0,3.53605377]
[1680534990711,4.63348048,28002.0,28001.0,3.50805377]
[1680534990925,4.63348048,28002.0,28001.0,3.53605377]
[1680534991374,4.62766028,28002.0,28001.0,3.53605377]
[1680534992280,4.62766028,28002.0,28001.0,3.50805377]
[1680534992933,4.62766028,28002.0,28001.0,3.53605377]
[1680534993390,4.12955265,28002.0,28001.0,3.85965377]
[1680534994273,4.0870402,28002.0,28001.0,3.85965377]
[1680534994481,4.05303024,28002.0,28001.0,3.85965377]
[1680534995159,4.05303024,28002.0,28001.0,3.8382891]
[1680534995368,4.05303024,28002.0,28001.0,3.5433891]
[1680534995585,4.05272754,28002.0,28001.0,3.5153891]
[1680534995807,4.05272754,28002.0,28001.0,3.5433891]
[1680534996068,4.05272754,28002.0,28001.0,3.5153891]
[1680534996303,4.05272754,28002.0,28001.0,3.5433891]
[1680534996559,4.05272754,28002.0,28001.0,3.53675377]
[1680534999645,4.05272754,28002.0,28001.0,3.45095377]
[1680535000202,4.05272754,28002.0,28001.0,3.42295377]
[1680535000461,4.01561754,28002.0,28001.0,3.42295377]
[1680535001307,4.01561754,28002.0,28001.0,3.45095377]
[1680535002108,4.01261754,28002.0,28001.0,3.45095377]
[1680535002591,4.01261754,28002.0,28001.0,4.64559712]
[1680535002768,2.62528202,28002.0,28001.0,4.64560003]
[1680535006223,2.62498251,28002.0,28001.0,4.64560003]
[1680535009462,2.62487533,28002.0,28001.0,4.64560003]
[1680535010819,2.62487533,28002.0,28001.0,4.61760003]
[1680535011057,2.25949133,28002.0,28001.0,4.61760003]